bitfinex/quotes_ETHUSD_20260207
["timestamp","ask_amount","ask_price","bid_price","bid_amount"]
[1770467779483,0.05438813,2059.9,2058.9,0.001]
[1770467779687,1.59992051,2060.2,2059.2,1.21403426]
[1770467779881,1.32123485,2060.1,2059.2,1.21405352]
[1770467780132,0.05438813,2059.9,2059.2,1.21405352]
[1770467780298,1.26808241,2059.9,2058.9,0.001]
[1770467780498,2.81361479,2059.9,2058.9,0.001]
[1770467780703,0.05438813,2059.6,2058.9,0.001]
[1770467781006,0.05438813,2059.6,2058.9,0.67227723]
[1770467781528,2.81361479,2059.9,2058.9,0.001]
[1770467781887,1.26808241,2059.9,2058.9,0.001]
[1770467782305,1.32123485,2060.1,2058.9,0.001]
[1770467782506,1.26789139,2060.2,2058.9,0.001]
[1770467782785,1.54553238,2061.1,2058.9,13.15856032]
[1770467783007,0.05438813,2060.8,2059.3,13.15756032]
[1770467783211,0.05438813,2060.8,2059.4,1.54513236]
[1770467783920,0.05438813,2060.9,2059.5,1.54513236]
[1770467784116,0.82088188,2060.9,2059.6,2.86088839]
[1770467784417,0.82088188,2060.9,2059.7,1.21376899]
[1770467784814,2.03395388,2060.9,2059.7,1.21376899]
[1770467784996,0.82088188,2060.9,2059.7,2.75890135]
[1770467785201,1.26745592,2060.9,2059.7,2.75890135]
[1770467785517,0.05438813,2060.9,2059.7,2.75890135]
[1770467785993,1.26746239,2060.9,2059.7,2.75890135]
[1770467786310,0.002,2061.3,2059.8,1.54513236]
[1770467786508,0.05438813,2061.2,2060.0,1.21359223]
[1770467786717,0.05438813,2060.9,2060.0,1.21359223]
[1770467786890,1.59992051,2061.2,2060.0,1.21359223]
[1770467787091,0.05438813,2060.9,2059.9,1.21364928]
[1770467788417,0.05438813,2061.2,2059.9,1.21364928]
[1770467788716,0.05438813,2060.9,2060.0,0.60682594]
[1770467788922,0.05438813,2060.9,2059.7,4.85460459]
[1770467789090,0.05438813,2060.6,2059.7,4.85460459]
[1770467789287,0.05438813,2060.9,2059.7,4.85460459]
[1770467789493,0.05438813,2060.9,2059.8,0.73841296]
[1770467790108,0.05438813,2061.2,2059.9,1.54513236]
[1770467790305,0.05438813,2061.1,2059.9,1.54513236]
[1770467790595,0.05438813,2061.1,2060.0,1.21359223]
[1770467790811,0.05438813,2061.2,2060.1,0.76130935]
[1770467791337,0.002,2061.3,2060.1,0.76130935]
[1770467791637,4.84853919,2062.5,2060.8,1.54513236]
[1770467791793,1.21225232,2062.3,2060.8,1.54513236]
[1770467791989,1.54553238,2062.3,2060.8,1.54513236]
[1770467792195,4.90516617,2062.4,2060.8,1.54513236]
[1770467792196,0.002,2062.4,2060.9,1.54513236]
[1770467792497,0.31874282,2062.0,2061.1,1.54513236]
[1770467792696,0.31874282,2062.0,2061.2,0.27581358]
[1770467792913,0.31874282,2062.0,2061.2,1.82094594]
[1770467793119,1.54753238,2063.6,2061.3,1.54513236]
[1770467793318,0.002,2064.7,2063.3,11.61242796]
[1770467793519,1.21090441,2064.6,2064.1,0.25340317]
[1770467793723,0.05638813,2064.7,2063.4,2.70637516]
[1770467793919,0.002,2064.7,2063.4,1.54513236]
[1770467794626,0.002,2064.7,2063.5,1.2115338]
[1770467794809,0.002,2064.7,2063.6,1.54513236]
[1770467795014,0.002,2064.7,2063.8,1.54513236]
[1770467795329,0.002,2064.7,2063.5,1.2115338]
[1770467795330,0.05438813,2064.6,2063.5,1.2115338]
[1770467795535,0.05438813,2064.3,2063.4,1.21155533]
[1770467795831,0.05438813,2064.6,2063.4,1.21155533]
[1770467796330,0.002,2064.7,2063.5,1.55952334]
[1770467796717,0.002,2064.7,2063.6,2.77099843]
[1770467796924,0.002,2064.7,2063.7,1.55952334]
[1770467798722,0.002,2064.7,2063.8,1.21135768]
[1770467800321,0.05438813,2064.6,2063.8,1.21135768]
[1770467800740,0.05438813,2064.6,2063.5,4.84607261]
[1770467800940,0.05438813,2064.6,2063.5,6.21690105]
[1770467801139,1.2128566,2064.7,2063.5,6.21690105]
[1770467801338,0.05438813,2064.6,2063.5,6.21690105]
[1770467801540,0.05438813,2064.6,2063.5,1.2115338]
[1770467802326,0.05438813,2064.3,2063.4,1.211557]
[1770467802942,4.84399745,2064.5,2063.0,4.84728183]
[1770467803152,1.21097831,2064.5,2063.9,0.001]
[1770467803334,0.61089501,2064.4,2063.9,0.001]
[1770467803837,0.002,2064.5,2063.9,0.001]
[1770467804736,0.05438813,2064.3,2063.9,0.001]
[1770467804953,0.002,2064.5,2063.9,0.001]
[1770467805155,1.21298626,2064.5,2063.9,0.001]
[1770467805355,0.002,2064.5,2063.9,0.001]
[1770467805528,1.82422071,2064.5,2063.9,0.001]
[1770467805731,0.002,2064.5,2063.9,0.001]
[1770467805932,0.002,2064.7,2063.9,1.56052334]
[1770467807174,0.32671466,2065.2,2064.1,13.10678155]
[1770467807464,0.32671466,2065.2,2063.9,1.56052334]
[1770467809132,0.32671466,2065.2,2064.1,1.55952334]
[1770467809354,0.32671466,2065.2,2064.2,1.83659971]
[1770467810161,0.002,2065.6,2064.3,1.55952334]
[1770467810357,0.002,2065.6,2064.6,1.55952334]
[1770467811163,0.002,2065.6,2064.8,1.55952334]
[1770467811984,0.002,2065.8,2064.8,1.55952334]
[1770467812177,0.002,2065.8,2064.7,1.21082966]
[1770467812178,0.002,2065.8,2065.0,1.55952334]
[1770467812917,0.002,2065.8,2064.9,0.2770353]
[1770467813100,0.05438813,2065.4,2064.5,1.2109407]
[1770467813400,0.05438813,2065.1,2063.9,1.21229899]
[1770467813572,0.05438813,2065.1,2063.9,0.001]
[1770467813767,0.05438813,2064.8,2063.9,0.001]
[1770467814287,0.05438813,2064.5,2063.9,0.001]
[1770467815204,1.21082966,2064.7,2063.9,0.001]
[1770467815512,0.05438813,2064.5,2063.9,0.001]
[1770467817002,1.21065375,2065.0,2063.9,0.001]
[1770467817501,4.89700314,2065.1,2063.9,0.001]
[1770467817502,1.21063448,2065.1,2063.9,0.001]
[1770467818007,1.21056399,2065.2,2063.9,0.001]
[1770467818188,0.60526479,2065.1,2063.9,0.001]
[1770467818503,1.21242003,2065.4,2063.9,1.56052334]
[1770467818705,1.26680816,2065.4,2063.9,1.56052334]
[1770467819375,1.21242003,2065.4,2063.9,1.56052334]
[1770467819582,0.002,2065.4,2064.1,1.55952334]
[1770467819805,0.002,2065.4,2064.3,1.55952334]
[1770467820009,0.002,2065.4,2064.5,1.55952334]
[1770467821530,0.002,2065.4,2064.4,1.31067816]
[1770467821820,0.002,2065.4,2063.9,4.84596124]
[1770467821821,1.26489887,2065.3,2063.9,6.40548458]
[1770467822816,0.05438813,2065.0,2063.9,0.001]
[1770467823194,0.05438813,2065.0,2063.9,0.60677742]
[1770467823584,0.05438813,2064.7,2063.9,0.001]
[1770467823887,0.05438813,2064.7,2063.6,0.001]
[1770467823888,0.05438813,2064.0,2063.6,0.001]
[1770467824092,0.05438813,2064.4,2063.6,0.001]
[1770467824284,0.05438813,2064.1,2063.1,1.21173569]
[1770467824485,0.05438813,2064.1,2063.2,1.21167167]
[1770467824715,0.05438813,2064.1,2063.1,1.21173525]
[1770467824927,0.05438813,2064.1,2062.8,0.001]
[1770467825088,1.59052142,2064.1,2062.9,1.21185568]
[1770467825287,1.59052142,2064.1,2062.9,1.81791787]
[1770467825487,1.59052142,2064.1,2062.9,1.81791089]
[1770467825797,1.21124031,2064.0,2062.9,1.81791089]
[1770467825994,0.05438813,2063.8,2062.8,0.001]
[1770467826193,0.05438813,2063.4,2061.9,4.84968458]
[1770467826719,0.05438813,2063.4,2062.3,1.21220031]
[1770467826912,0.05438813,2063.4,2062.5,1.2120699]
[1770467827082,0.05438813,2063.4,2062.3,1.21223488]
[1770467827286,0.05438813,2063.4,2062.3,0.60616432]
[1770467827287,0.05438813,2063.1,2062.3,0.60616432]
[1770467827487,0.05438813,2063.1,2062.3,1.2122339]
[1770467827785,1.26620293,2063.1,2061.8,4.85010496]
[1770467827988,2.76135422,2064.2,2062.1,1.61487105]
[1770467828192,1.60456073,2063.5,2061.9,0.37671898]
[1770467828390,1.60456073,2063.5,2061.9,0.64393567]
[1770467828617,0.05438813,2063.5,2062.0,1.61487105]
[1770467828911,0.05438813,2063.5,2062.5,0.001]
[1770467829288,0.05438813,2063.2,2062.5,0.001]
[1770467829487,0.05438813,2063.5,2062.5,0.001]
[1770467830394,1.21159251,2063.4,2062.5,0.001]
[1770467830708,0.61123507,2063.3,2062.5,0.001]
[1770467831083,4.84528025,2063.9,2062.5,0.001]
[1770467831318,1.21112295,2064.2,2062.5,1.63593855]
[1770467831521,0.05438813,2064.4,2062.5,1.63593855]
[1770467831687,1.2108883,2064.6,2062.8,1.63493855]
[1770467831893,1.2108883,2064.6,2063.2,1.63493855]
[1770467832086,0.05438813,2064.4,2063.2,1.63493855]
[1770467832616,1.21092107,2064.6,2063.3,1.21165123]
[1770467832821,0.05438813,2064.4,2063.2,1.21166434]
[1770467833023,0.05438813,2064.1,2063.1,1.21172992]
[1770467833187,0.05438813,2064.1,2062.5,0.001]
[1770467833188,0.05438813,2064.1,2063.0,1.21181444]
[1770467833387,0.05438813,2063.8,2063.0,1.21182143]
[1770467833913,0.05438813,2063.8,2063.0,0.60595821]
[1770467834089,0.05438813,2063.8,2062.8,1.21191252]
[1770467834293,0.05438813,2063.8,2063.0,1.21182696]
[1770467834493,1.21141638,2063.7,2062.5,0.001]
[1770467834805,1.21141638,2063.7,2062.9,1.21186625]
[1770467835009,1.21141638,2063.7,2062.5,4.84941673]
[1770467835216,0.05438813,2063.5,2062.6,1.86045068]
[1770467835388,0.61113005,2063.6,2062.6,4.84824796]
[1770467835590,0.05438813,2063.5,2062.6,1.21201694]
[1770467835788,0.05438813,2063.5,2062.6,1.21202332]
[1770467836026,0.05438813,2063.5,2062.7,1.21199882]
[1770467836229,0.61113005,2063.6,2062.8,1.21194314]
[1770467836407,1.2115338,2063.5,2062.5,0.001]
[1770467836608,1.87838478,2063.5,2062.5,0.001]
[1770467837625,1.93277291,2063.5,2062.5,0.001]
[1770467837792,0.05438813,2063.2,2062.5,0.001]
[1770467837993,0.05438813,2063.2,2062.3,0.001]
[1770467838195,0.05438813,2062.9,2062.3,0.001]
[1770467838400,0.72123911,2063.5,2062.3,0.001]
[1770467838731,4.84598968,2063.6,2062.3,0.001]
[1770467839108,0.05438813,2063.8,2062.3,0.001]
[1770467839306,1.21141638,2063.7,2062.3,1.63593855]
[1770467840513,1.21141638,2063.7,2062.4,1.21217998]
[1770467841428,1.21141638,2063.7,2062.5,0.001]
[1770467841633,0.05638813,2063.2,2062.5,0.001]
[1770467842502,0.05438813,2062.9,2062.3,0.001]
[1770467842730,0.05438813,2062.9,2061.6,1.21264745]
[1770467843095,0.05438813,2062.1,2061.6,1.21264745]
[1770467843297,0.1024,2062.8,2061.4,0.001]
[1770467843515,0.1024,2062.8,2061.5,1.21266558]
[1770467843516,0.05438813,2062.0,2061.5,1.21266558]
[1770467843697,0.05438813,2062.0,2061.6,0.6064651]
[1770467843897,0.05438813,2062.0,2061.4,0.001]
[1770467844320,0.05438813,2061.7,2061.4,0.001]
[1770467844496,0.05438813,2061.8,2061.4,0.001]
[1770467844900,1.26695321,2061.8,2061.4,0.001]
[1770467845107,1.26695321,2061.8,2060.7,1.21317998]
[1770467845401,0.61170486,2061.7,2060.8,0.77008385]
[1770467845605,1.26695321,2061.8,2060.5,1.21326022]
[1770467845606,0.05438813,2061.5,2060.5,1.21326022]
[1770467845823,0.05438813,2061.4,2060.6,1.21323703]
[1770467846023,0.05438813,2061.4,2060.6,1.21322249]
[1770467846225,0.05438813,2061.4,2060.5,1.21326943]
[1770467846434,0.05438813,2061.1,2060.3,1.21337468]
[1770467847101,1.26733863,2061.1,2060.2,1.21346845]
[1770467847332,11.77325674,2061.8,2060.2,1.21346845]
[1770467847333,4.84966052,2062.2,2060.3,1.68280731]
[1770467847500,0.05438813,2061.8,2060.4,1.68280731]
[1770467847831,0.05438813,2061.5,2060.4,1.68280731]
[1770467848032,0.05438813,2061.2,2060.2,1.21346845]
[1770467848235,0.05438813,2060.9,2060.3,0.60674304]
[1770467848539,0.05438813,2061.2,2060.1,4.85389767]
[1770467848702,0.05438813,2060.9,2060.0,1.21359223]
[1770467850836,0.05438813,2061.0,2060.0,1.21359223]
[1770467851017,0.05438813,2061.1,2060.0,1.21359223]
[1770467851808,1.32900898,2061.5,2060.0,1.21359223]
[1770467851809,0.05438813,2061.6,2060.1,1.68280731]
[1770467852001,0.05438813,2061.3,2060.1,1.23505517]
[1770467852201,0.05438813,2061.2,2060.2,1.68280731]
[1770467852424,0.05438813,2060.9,2060.2,1.68280731]
[1770467852729,0.05438813,2060.9,2060.3,0.29178625]
[1770467853033,0.05438813,2060.6,2060.0,1.21359223]
[1770467853228,0.05438813,2060.6,2060.1,1.21353144]
[1770467853432,0.05438813,2060.6,2060.1,1.82032148]
[1770467853810,0.05438813,2060.6,2060.2,0.001]
[1770467854039,1.26764293,2060.6,2059.8,1.21367223]
[1770467854210,0.05438813,2060.3,2059.9,1.21365113]
[1770467854417,0.05438813,2060.3,2059.7,1.21375048]
[1770467854745,0.05438813,2060.3,2059.7,1.21375628]
[1770467854953,0.05438813,2060.3,2059.4,2.89675311]
[1770467855111,0.05438813,2060.3,2059.5,0.77527586]
[1770467855312,0.05438813,2060.8,2059.6,1.68280731]
[1770467856108,0.05438813,2060.5,2059.6,1.68280731]
[1770467856311,0.05438813,2060.8,2059.6,1.68280731]
[1770467857054,0.05438813,2060.8,2059.8,1.68280731]
[1770467857241,0.05438813,2060.9,2059.9,0.28965763]
[1770467857945,0.05438813,2060.9,2059.9,1.97246494]
[1770467859340,0.05438813,2060.9,2060.0,1.21359223]
[1770467859341,0.05438813,2060.6,2060.0,1.21359223]
[1770467859541,0.05438813,2060.9,2060.0,1.21359223]
[1770467859746,0.05438813,2060.6,2059.9,1.50327987]
[1770467859945,0.05438813,2060.6,2060.0,0.63580436]
[1770467860530,0.05438813,2060.6,2059.9,1.21365081]
[1770467860726,0.05438813,2060.6,2059.8,1.2136674]
[1770467860931,0.05438813,2060.6,2059.8,1.21369174]
[1770467861150,0.05438813,2060.6,2059.5,2.45808317]
[1770467861151,0.05438813,2060.3,2059.5,2.45808317]
[1770467861365,0.05438813,2060.3,2059.5,1.21387426]
[1770467861561,1.21329774,2060.5,2059.5,2.89668157]
[1770467861739,4.85257625,2060.8,2059.6,1.68280731]
[1770467862144,1.21312111,2060.9,2059.6,1.68280731]
[1770467862448,1.26750924,2060.9,2059.6,1.68280731]
[1770467862645,0.05438813,2060.6,2059.7,1.97247547]
[1770467863045,0.05438813,2060.3,2059.7,1.97247547]
[1770467863564,1.2678381,2060.3,2059.4,4.85561901]
[1770467863734,1.2678381,2060.3,2059.6,1.21380889]
[1770467863933,1.2678381,2060.3,2059.5,1.21384937]
[1770467864239,0.05438813,2060.3,2059.5,4.85554647]
[1770467864452,0.05438813,2060.4,2059.3,1.68280731]
[1770467864655,0.05438813,2060.4,2059.3,6.53880136]
[1770467864854,0.05438813,2060.4,2059.6,1.21382312]
[1770467865063,0.05438813,2060.4,2059.7,1.21376104]
[1770467865245,0.05438813,2060.4,2059.5,1.2138508]
[1770467865571,0.05438813,2060.0,2059.1,1.68380731]
[1770467865863,0.05438813,2059.7,2059.1,0.001]
[1770467866041,0.05438813,2060.0,2059.1,0.001]
[1770467866446,0.05438813,2060.0,2059.5,0.001]
[1770467866667,0.05438813,2059.7,2059.5,0.001]
[1770467867467,1.26818745,2059.7,2059.5,0.001]
[1770467868390,1.88049049,2059.7,2059.3,0.001]
[1770467868671,1.88049049,2059.7,2058.7,1.21431228]
[1770467868672,0.05438813,2059.4,2058.7,1.21431228]
[1770467868840,0.05438813,2059.4,2058.6,1.21537923]
[1770467869182,0.05438813,2059.4,2058.4,0.001]
[1770467869354,1.21418164,2059.0,2058.4,0.001]
[1770467869555,1.82667802,2059.0,2058.4,0.001]
[1770467869888,1.2683376,2059.4,2058.4,1.68380731]
[1770467871000,0.66669117,2059.7,2058.4,1.68380731]
[1770467871141,0.05438813,2059.5,2058.5,1.68280731]
[1770467871342,0.05438813,2059.2,2058.5,1.68280731]
[1770467871679,1.2139458,2059.4,2058.6,1.21441756]
[1770467871854,1.82634623,2059.4,2058.6,1.21441756]
[1770467872283,1.21388219,2059.6,2058.6,1.21441756]
[1770467872493,1.21388219,2059.6,2058.7,1.68280731]
[1770467872980,0.05438813,2059.2,2058.4,0.001]
[1770467873294,0.07845007,2060.2,2058.6,1.68280731]
[1770467873491,0.05438813,2059.9,2058.6,1.68280731]
[1770467873698,1.21335662,2060.5,2058.8,1.68280731]
[1770467873896,1.21335662,2060.5,2058.7,1.50408422]
[1770467873897,0.05438813,2060.3,2059.0,1.68280731]
[1770467874068,1.21335662,2060.5,2059.0,1.68280731]
[1770467874267,0.05438813,2059.9,2059.0,1.68280731]
[1770467874989,0.05438813,2059.9,2058.7,1.50408422]
[1770467875191,0.05438813,2059.6,2058.8,0.80443258]
[1770467875772,1.21388686,2059.5,2058.7,0.28972565]
[1770467875972,0.05438813,2059.3,2058.6,1.21440729]
[1770467876701,0.05438813,2059.3,2058.5,1.2144394]
[1770467876871,0.05438813,2059.3,2058.7,1.2143432]
[1770467877075,0.05438813,2059.2,2058.5,1.21445825]
[1770467877476,0.05438813,2058.9,2058.3,1.21454152]
[1770467877700,0.05438813,2059.2,2058.2,1.68280731]
[1770467877879,0.05438813,2059.3,2058.3,1.9725593]
[1770467878204,1.26827499,2059.6,2058.3,1.9725593]
[1770467878205,1.26825089,2059.6,2058.3,1.9725593]
[1770467878704,4.85490668,2059.8,2058.3,1.9725593]
[1770467878879,0.05438813,2059.6,2058.3,1.9725593]
[1770467880092,1.26827245,2059.6,2058.5,1.68280731]
[1770467880305,1.26827245,2059.6,2058.6,0.28973429]
[1770467880306,1.88061663,2059.6,2058.6,0.28973429]
[1770467880505,1.88061663,2059.6,2058.6,1.9725416]
[1770467880506,1.82618156,2059.6,2058.6,1.9725416]
[1770467880685,0.05438813,2059.9,2058.6,1.9725416]
[1770467880891,0.002,2059.4,2058.6,1.9725416]
[1770467881610,0.002,2059.4,2058.6,0.28973429]
[1770467882213,0.002,2059.4,2058.5,2.89822891]
[1770467883006,0.05438813,2059.2,2058.5,0.001]
[1770467883375,0.05438813,2059.2,2058.3,1.21558743]
[1770467884108,1.26867153,2058.9,2058.2,1.21464954]
[1770467884704,0.05438813,2058.3,2057.5,4.86021633]
[1770467884903,0.05438813,2058.3,2057.4,1.21608484]
[1770467885107,0.05438813,2058.3,2057.0,1.68280731]
[1770467885108,0.05438813,2058.0,2057.0,1.68280731]
[1770467885408,0.05438813,2058.0,2057.1,1.21527216]
[1770467885609,0.05438813,2058.0,2056.9,1.21537342]
[1770467885782,0.05438813,2057.7,2056.7,1.21549731]
[1770467885984,0.05438813,2057.4,2056.4,0.25344087]
[1770467886212,0.05438813,2057.1,2056.4,0.25344087]
[1770467886385,0.05438813,2057.1,2056.4,1.46914884]
[1770467886588,1.26969489,2057.1,2056.2,1.21579723]
[1770467886807,0.05438813,2057.1,2056.3,1.21574291]
[1770467887023,0.05438813,2057.1,2056.1,1.68280731]
[1770467887238,0.05438813,2056.8,2055.8,2.89883067]
[1770467887524,0.05438813,2056.8,2055.8,1.21603272]
[1770467887824,0.05438813,2056.8,2055.5,1.68280731]
[1770467888127,0.05438813,2056.8,2055.1,11.55534832]
[1770467888128,0.05438813,2057.1,2055.6,6.04805659]
[1770467888330,1.22560177,2057.1,2055.8,1.68280731]
[1770467888528,0.05438813,2056.8,2055.8,1.68280731]
[1770467889410,1.21513938,2057.4,2055.9,1.68280731]
[1770467889595,0.05438813,2056.9,2055.9,1.68280731]
[1770467889801,0.05438813,2056.8,2056.0,0.25339592]
[1770467890215,1.26989229,2056.8,2056.0,0.25339592]
[1770467890631,0.61318137,2056.7,2055.8,1.21604079]
[1770467891005,1.26989229,2056.8,2055.8,1.2160429]
[1770467891223,0.05438813,2056.5,2055.7,1.21609477]
[1770467891427,0.05438813,2056.5,2055.8,1.21606023]
[1770467892003,1.2152846,2057.2,2056.1,1.68280731]
[1770467892235,1.21542126,2056.9,2056.2,0.28987456]
[1770467892436,1.21542126,2056.9,2055.9,1.21595539]
[1770467892737,4.91607319,2057.0,2055.7,1.68280731]
[1770467892738,0.05438813,2056.4,2055.7,1.21612511]
[1770467892912,0.05438813,2056.4,2055.8,1.21605806]
[1770467893099,0.05438813,2056.4,2055.7,1.21612631]
[1770467893723,0.05438813,2056.4,2056.0,0.001]
[1770467894334,0.05438813,2056.7,2055.8,0.001]
[1770467894532,1.26996954,2056.7,2055.8,0.001]
[1770467894903,0.61319439,2056.6,2055.8,0.001]
[1770467895432,0.05438813,2056.8,2055.8,1.68380731]
[1770467895642,0.05438813,2056.5,2055.8,0.001]
[1770467896417,1.2700922,2056.5,2055.8,0.001]
[1770467896605,1.27005371,2056.5,2055.8,0.001]
[1770467896806,1.21554095,2056.7,2055.8,0.001]
[1770467897008,4.96615007,2056.9,2055.8,1.68380731]
[1770467897009,0.002,2056.9,2055.8,1.68380731]
[1770467898021,0.002,2056.9,2056.1,1.68280731]
[1770467898220,0.002,2056.9,2056.2,2.89864234]
[1770467898534,0.002,2056.9,2056.3,1.68280731]
[1770467898915,0.002,2056.9,2056.2,1.21583503]
[1770467899115,0.002,2056.9,2056.2,2.31008656]
[1770467899837,0.002,2056.9,2056.2,3.99289387]
[1770467900934,0.002,2056.9,2055.8,6.54714745]
[1770467901132,0.05438813,2056.8,2055.8,1.21704168]
[1770467901520,0.05438813,2056.8,2055.8,0.001]
[1770467901720,0.05438813,2056.8,2056.0,1.21594827]
[1770467901918,0.05438813,2056.8,2055.8,1.21703397]
[1770467902125,0.05438813,2056.8,2055.9,1.21597827]
[1770467902324,0.05438813,2056.8,2055.8,1.21702923]
[1770467902527,1.21553945,2056.7,2055.8,0.001]
[1770467902839,0.25237213,2055.8,2055.6,1.68280731]
[1770467903148,1.21553945,2056.7,2055.6,1.68280731]
[1770467903441,0.05438813,2056.5,2055.6,1.68280731]
[1770467904315,0.05438813,2056.5,2055.5,1.21624908]
[1770467904524,0.05438813,2056.8,2055.8,1.68280731]
[1770467904740,1.21742846,2056.9,2055.8,1.68280731]
[1770467905040,1.21742137,2056.9,2055.8,1.68280731]
[1770467905242,1.8309496,2056.9,2055.9,0.28989381]
[1770467905542,0.05438813,2056.8,2055.9,1.97270112]
[1770467906933,1.26988592,2056.8,2056.0,1.2159533]
[1770467907141,0.05438813,2056.8,2056.0,1.2169533]
[1770467907344,0.002,2056.6,2056.0,1.2169533]
[1770467907533,0.002,2056.6,2056.1,0.80535255]
[1770467907714,0.002,2056.6,2056.0,1.2169533]
[1770467907915,0.002,2056.6,2055.9,1.21597628]
[1770467908347,0.002,2056.6,2055.9,2.89878359]
[1770467909862,0.002,2056.6,2055.9,1.21597628]
[1770467910564,0.002,2056.6,2055.9,1.2159772]
[1770467910772,0.002,2056.6,2056.0,1.11630541]
[1770467911138,0.002,2056.6,2056.0,2.33222194]
[1770467911559,0.002,2056.6,2056.0,1.21594959]
[1770467912259,0.002,2056.6,2056.0,2.8987569]
[1770467912769,0.002,2056.6,2056.1,1.68280731]
[1770467913281,0.002,2056.6,2056.2,1.21583503]
[1770467913441,0.002,2056.6,2055.8,4.86508337]
[1770467913442,0.002,2056.6,2056.0,1.21591514]
[1770467913645,0.002,2056.6,2056.1,1.21588593]
[1770467914056,0.002,2056.6,2056.0,1.21595153]
[1770467914450,0.002,2056.6,2055.8,1.21702779]
[1770467914662,0.002,2056.6,2055.9,1.21600884]
[1770467914972,0.002,2056.6,2056.0,1.21594393]
[1770467915272,0.002,2056.6,2055.8,1.9934636]
[1770467917569,0.002,2056.6,2055.9,1.68280731]
[1770467917773,0.002,2056.6,2055.8,1.9934636]
[1770467917974,0.002,2056.6,2056.0,5.08180731]
[1770467918151,0.002,2056.6,2056.1,1.68280731]
[1770467918875,0.05438813,2056.5,2055.8,0.001]
[1770467919249,0.05438813,2056.5,2055.8,1.21706101]
[1770467919571,1.21571678,2056.4,2055.8,0.001]
[1770467919872,1.82918178,2056.4,2055.8,0.001]
[1770467920078,0.613465,2056.4,2056.0,0.001]
[1770467920978,0.613465,2056.4,2055.5,1.21622128]
[1770467921571,0.613465,2056.4,2054.9,1.35391729]
[1770467921572,0.05438813,2055.9,2054.9,1.35391729]
[1770467921775,0.43103936,2055.8,2055.0,1.68280731]
[1770467921974,0.43103936,2055.7,2054.9,2.46259239]
[1770467922281,1.27024345,2056.2,2054.9,4.1453997]
[1770467922466,1.27024345,2056.2,2055.1,1.68280731]
[1770467922666,1.89382515,2056.2,2055.2,0.50828073]
[1770467922871,1.89382515,2056.2,2054.9,2.46259239]
[1770467923059,0.05438813,2055.9,2054.9,0.1373485]
[1770467923373,0.05438813,2055.6,2054.9,0.1373485]
[1770467923576,1.27043183,2055.9,2054.9,1.35393264]
[1770467924461,0.05438813,2055.6,2054.6,1.21673699]
[1770467924769,0.05438813,2055.6,2054.7,1.21669324]
[1770467924970,0.05438813,2055.6,2054.7,1.82506663]
[1770467925269,0.05438813,2055.6,2054.6,1.21675403]
[1770467925270,0.05438813,2055.3,2054.6,1.21675403]
[1770467925466,1.27076265,2055.3,2054.4,1.21690031]
[1770467925659,0.05438813,2055.6,2054.5,1.68280731]
[1770467925867,1.27059814,2055.6,2054.5,1.67013562]
[1770467926252,5.02093246,2055.9,2054.5,1.67013562]
[1770467926453,5.02093246,2055.9,2054.4,1.21690031]
[1770467926454,1.74106449,2055.8,2054.6,1.95883921]
[1770467927064,0.12648311,2057.0,2054.8,1.67013562]
[1770467927381,0.05638813,2057.1,2054.6,11.93082146]
[1770467927382,1.21557726,2056.7,2055.1,1.67013562]
[1770467927685,0.002,2056.8,2055.3,1.67013562]
[1770467927854,0.05638813,2056.8,2055.3,1.67013562]
[1770467929563,0.002,2056.8,2055.5,1.67013562]
[1770467929758,1.21750081,2056.8,2055.7,1.67013562]
[1770467930193,1.27188894,2056.8,2055.7,1.67013562]
[1770467931754,1.21750081,2056.8,2055.8,2.88620722]
[1770467931981,0.002,2056.8,2055.9,1.67013562]
[1770467932181,1.27192352,2056.8,2055.8,1.2160716]
[1770467933178,0.002,2056.4,2055.8,1.2160716]
[1770467933378,0.002,2056.4,2055.9,0.6080358]
[1770467934406,0.002,2056.4,2055.9,1.82399613]
[1770467934899,0.002,2056.4,2055.9,1.82404348]
[1770467935089,0.002,2056.4,2055.9,1.21600768]
[1770467935515,0.002,2056.4,2055.7,1.21612494]
[1770467935827,0.002,2056.4,2055.5,0.001]
[1770467935828,0.05438813,2056.3,2055.5,0.001]
[1770467935962,0.05438813,2056.0,2055.5,0.001]
[1770467936300,1.2703752,2056.0,2055.5,0.001]
[1770467936596,0.05438813,2055.4,2054.7,1.67013562]
[1770467936771,1.88377156,2056.0,2055.1,1.21648163]
[1770467936772,0.66778449,2056.0,2055.1,1.21648163]
[1770467936978,0.05438813,2056.2,2055.2,1.67013562]
[1770467937506,1.21772448,2056.4,2055.2,1.67013562]
[1770467937678,0.05438813,2056.2,2055.2,1.67013562]
[1770467938284,0.05438813,2055.6,2055.2,1.67013562]
[1770467938499,0.05438813,2055.9,2055.3,1.21636744]
[1770467938665,0.05438813,2055.7,2055.2,2.88652096]
[1770467938866,0.05438813,2055.6,2055.2,3.66175058]
[1770467939080,0.05438813,2055.9,2055.3,1.67013562]
[1770467940066,0.05438813,2055.6,2055.1,1.21644971]
[1770467940295,0.05438813,2055.9,2055.2,1.2164118]
[1770467940471,0.05438813,2055.6,2055.1,1.67013562]
[1770467940812,0.05438813,2055.9,2055.3,1.67013562]
[1770467941096,0.05438813,2055.8,2055.3,1.67013562]
[1770467941302,0.05438813,2056.1,2055.3,1.67013562]
[1770467941466,0.05638813,2056.4,2055.3,1.67013562]
[1770467941669,0.05438813,2056.1,2055.3,1.67013562]
[1770467941977,0.05438813,2055.8,2055.4,1.39658846]
[1770467942171,0.05438813,2056.1,2055.2,2.32376668]
[1770467942371,0.05638813,2056.4,2055.3,1.67013562]
[1770467942577,0.05438813,2056.1,2055.5,1.67013562]
[1770467943094,0.05438813,2055.6,2055.4,1.21630826]
[1770467943497,0.05438813,2055.6,2055.2,1.8700202]
[1770467943685,0.05438813,2055.6,2055.3,1.21634754]
[1770467943888,0.05438813,2055.8,2055.3,1.21634754]
[1770467944599,0.05438813,2055.8,2055.2,4.86569791]
[1770467945192,0.05438813,2055.5,2055.1,2.88661017]
[1770467946402,0.05438813,2055.5,2055.1,1.07566755]
[1770467946597,0.05438813,2055.5,2054.7,2.90172334]
[1770467946800,0.05438813,2054.9,2054.6,1.50546594]
[1770467946972,0.05438813,2054.3,2053.0,1.93845907]
[1770467947172,0.05438813,2054.1,2053.5,1.21743167]
[1770467947406,0.05438813,2054.5,2053.5,1.21743167]
[1770467947610,0.05438813,2054.4,2053.6,0.60871663]
[1770467948177,0.05438813,2054.4,2053.7,3.4]
[1770467948704,0.05438813,2054.1,2053.7,4.61831508]
[1770467948907,0.05438813,2054.4,2053.7,4.61831508]
[1770467949275,1.27129725,2054.4,2053.6,1.21737186]